Cogmind - Beta 14 @@@ ROGUE MODE // 2024.10.10 @ 22:12:35 Player: LordRauschebart Result: Destroyed by S-10 Pest with Light Assault Rifle Performance ------------- Evolutions (1) 500 Regions Visited (3) 600 Robots Destroyed (31) 155 Value Destroyed (502) 502 Prototype IDs (1) 20 Alien Tech Used (0) 0 Bonus (0) 0 TOTAL SCORE: 1777 Bonus ------- None Cogmind --------- Core Integrity 0/400 Matter 300/300 Energy 99/100 System Corruption 0% Temperature Cool (0) Movement Core (700) Ox13 Location -9/Materials Parts ------- > --- POWER (1) -------- (None) > --- PROPULSION (4) --- (None) > --- UTILITY (2) ------ High-capacity Storage Unit > --- WEAPON (2) ------- (None) > --- INVENTORY (20) --- Light Treads Light Treads Sensor Array Experimental Sensor Array Signal Interpreter Improved Terrain Scanner Light Armor Plating Peak State ------------ > --- POWER ------------ Light Nuclear Core > --- PROPULSION ------- Aluminum Leg Aluminum Leg > --- UTILITY ---------- High-capacity Storage Unit Improved Terrain Scanner > --- WEAPON ----------- Particle Gun > --- INVENTORY -------- Light Treads Light Treads Aluminum Leg Aluminum Leg Sensor Array Experimental Sensor Array Signal Interpreter Improved Terrain Scanner Light Armor Plating [Rating: 12] Favorites ----------- Power Ion Engine Engine Ion Engine Power Core Light Nuclear Core Propulsion Aluminum Leg Leg Aluminum Leg Utility Improved Terrain Scanner Device Improved Terrain Scanner Storage High-capacity Storage Unit Weapon Light Assault Rifle Energy Gun EM Pulse Gun Energy Cannon Beam Cannon Ballistic Gun Light Assault Rifle Build | -11 -10 -10 -9 ------- Run | Yrd Mat Min Mat Slots Evolved 2 | . . . 2 Power . | . . . . Propulsion 2 | . . . 2 Utility . | . . . . Weapon . | . . . . Parts Attached 22 | 7 2 9 4 Power 4 | 1 1 2 . Engine 3 | 1 1 1 . Core 1 | . . 1 . Reactor . | . . . . Propulsion 7 | 2 . 2 3 Treads . | . . . . Leg 7 | 2 . 2 3 Wheel . | . . . . Hover . | . . . . Flight . | . . . . Utility 4 | 2 1 1 . Device 2 | 1 . 1 . Storage 2 | 1 1 . . Processor . | . . . . Hackware . | . . . . Protection . | . . . . Artifact . | . . . . Weapon 7 | 2 . 4 1 Energy Gun 2 | . . 1 1 Energy Cannon 1 | . . 1 . Ballistic Gun 4 | 2 . 2 . Ballistic Cannon . | . . . . Launcher . | . . . . Special Weapon . | . . . . Impact Weapon . | . . . . Slashing Weapon . | . . . . Piercing Weapon . | . . . . Special Melee Weapon . | . . . . Unidentified Prototypes 1 | . . . 1 Parts Lost 18 | . . 8 10 Power 3 | . . 2 1 Propulsion 6 | . . 1 5 Utility 2 | . . 1 1 Weapon 7 | . . 4 3 Highest Loss Streak 9 | . . 4 9 To Critical Strikes . | . . . . Average Slot Usage (%) 88 | . 100 90 49 Engine 9 | . 14 8 . Leg 26 | . 28 26 17 Device 12 | . 14 13 7 Storage 13 | . 14 14 11 Energy Gun 3 | . . 5 1 Energy Cannon 3 | . . 6 . Ballistic Gun 16 | . 28 13 5 Peak Build Rating 12 | 9 10 11 12 Average Rating 8 | 6 9 9 8 On Entrance 7 | . 9 10 11 Naked Turns . | . . . . Heaviest Build 51 | 14 49 51 49 Greatest Support 30 | 20 20 20 30 Greatest Overweight (x) 13 | 2 2 4 13 Average Overweight (x) 1 | . 1 2 2 Largest Inventory Capacity 20 | 8 20 20 20 Average Capacity 17 | 7 18 20 20 Most Carried 10 | 7 10 9 9 Average Carried 7 | 5 8 8 8 Final Capacity 20 | 8 20 20 20 Final Carried 9 | 7 9 9 7 Class Distribution -------------------- 93% | Mutant 6% | Scavenger-Mutant Dominant Class ---------------- Mutant | -10/Materials Mutant | -10/Mines Mutant | -9/Materials Resources | -11 -10 -10 -9 ----------- Run | Yrd Mat Min Mat Matter Collected 594 | 338 68 148 40 Remotely . | . . . . Salvage Created 732 | 164 207 267 94 Parts 49 | 11 19 14 5 Haulers Intercepted . | . . . . Recyclers Shooed 2 | 1 1 . . Parts Field Recycled . | . . . . Retrieved Matter . | . . . . Parts Self-Destructed . | . . . . Prevented . | . . . . Kills | -11 -10 -10 -9 ------- Run | Yrd Mat Min Mat Combat Hostiles Destroyed 20 | . 7 9 4 Melee 2 | . . . 2 Guns 10 | . 4 4 2 Cannons 4 | . . 4 . AOE 4 | . 3 1 . Classes Destroyed 7 | 2 5 . . Worker 1 | . 1 . . Tunneler 4 | 3 1 . . Recycler 3 | 1 1 1 . Mechanic 1 | . 1 . . Watcher 2 | . 2 . . Swarmer 14 | . 6 6 2 Grunt 6 | . 1 3 2 Best Kill Streak 12 | 4 12 3 3 Combat Bots Only 6 | . 6 3 3 Max Kills in Single Turn 7 | 1 7 1 1 Gunslinging . | . . . . Exploded 3 | . 3 1 . Melee 1 | . . . 1 Uniques/NPCs Destroyed . | . . . . Combat | -11 -10 -10 -9 -------- Run | Yrd Mat Min Mat Hostile Shots Fired 255 | . 32 100 123 Missed 60 | . 8 26 26 Damage Taken 1952 | . 269 738 945 Core 597 | . 53 140 404 Absorbed by Shields . | . . . . Core Remaining (%) 61 | 100 . 22 . Volleys Fired 83 | 17 18 40 8 Largest 2 | 2 2 2 1 Hottest 80 | 40 40 80 65 Shots Fired 144 | 34 36 66 8 Gun 126 | 34 36 48 8 Cannon 18 | . . 18 . Launcher . | . . . . Special . | . . . . Kinetic 110 | 34 36 40 . Thermal 26 | . . 18 8 Explosive . | . . . . Electromagnetic 8 | . . 8 . Robot Hit Streak 11 | 11 4 6 5 Robot Miss Streak 5 | 2 5 5 1 Penetration Max . | . . . . Secondary Targets 1 | . 1 . . Max Gunslinging Chain 1 | . 1 . . Shots Hit Robots 81 | 23 18 34 6 Core Hits 48 | 7 13 17 11 Critical Kills 1 | . 1 . . Critical Parts Destroyed . | . . . . Critical Strikes 4 | . 1 . 3 Burn 3 | . . . 3 Destroy 1 | . 1 . . Melee Attacks . | . . . . Impact . | . . . . Slashing . | . . . . Piercing . | . . . . Sneak Attacks . | . . . . Combat Hostiles . | . . . . Follow-up Attacks . | . . . . Damage Inflicted 1793 | 255 901 528 109 Guns 879 | 255 199 336 89 Cannons 158 | . . 158 . Explosions 711 | . 691 20 . Melee . | . . . . Ramming 45 | . 11 14 20 Kinetic 717 | 255 199 263 . Thermal 958 | . 691 178 89 Explosive . | . . . . Electromagnetic 73 | . . 73 . Impact . | . . . . Slashing . | . . . . Piercing . | . . . . Highest Corruption . | . . . . Average Corruption . | . . . . Corruption Purged . | . . . . Corruption Blocked . | . . . . Overload Shots . | . . . . Overflow Damage 239 | . 239 . . Projectiles . | . . . . Explosions 239 | . 239 . . Melee . | . . . . Knockbacks . | . . . . Impact . | . . . . Kinetic . | . . . . Secondary . | . . . . Self-Inflicted Damage 49 | . 49 . . Shots 1 | . 1 . . Rammed 2 | . . . 2 Targets Rammed 16 | . 1 4 11 Kicked 14 | . 1 4 9 Crushed . | . . . . Highest Temperature 175 | . 12 144 175 Average Temperature 54 | . 7 50 81 Received Heat Transfer 540 | . 54 258 228 Siege Activations . | . . . . Robots Corrupted . | . . . . Combat Hostiles . | . . . . Parts Fried . | . . . . Impact Corruptions . | . . . . Robots Melted . | . . . . Combat Hostiles . | . . . . Parts Melted 3 | . 1 1 1 Heat Transferred 1277 | . 450 383 444 Parts Sabotaged . | . . . . Parts Stolen . | . . . . Parts Stripped . | . . . . Power Chain Reactions 1 | . . 1 . Alert | -11 -10 -10 -9 ------- Run | Yrd Mat Min Mat Peak Influence 332 | 20 332 201 55 Initial 51 | . 13 51 24 Average 128 | 13 244 122 26 Maximum Alert Level 1 | . 1 1 . Low Security (%) 80 | 100 27 99 100 Level 1 19 | . 72 . . Level 2 . | . . . . Level 3 . | . . . . Level 4 . | . . . . Level 5 . | . . . . High Security . | . . . . Max Security . | . . . . Squads Dispatched 1 | . 1 . . Investigation . | . . . . Extermination . | . . . . Reinforcement 1 | . 1 . . Assault . | . . . . Garrison . | . . . . Intercept . | . . . . Searches Triggered . | . . . . Construction Impeded . | . . . . Haulers Reinforced . | . . . . Active Scanning Responses . | . . . . Cargo Convoy Interrupts . | . . . . Stealth | -11 -10 -10 -9 --------- Run | Yrd Mat Min Mat Distress Signals 2 | . 1 . 1 Communications Jammed . | . . . . Distress Signals . | . . . . Times Spotted 30 | . 11 10 9 Peak Tracking Total 7 | . 3 3 7 Tactical Retreats 1 | . . 1 . Traps | -11 -10 -10 -9 ------- Run | Yrd Mat Min Mat Traps Triggered . | . . . . Indirectly . | . . . . Trap Hack Attempts . | . . . . Triggered . | . . . . Disarmed . | . . . . Reprogrammed . | . . . . Reused . | . . . . Traps Extracted . | . . . . Installed . | . . . . Triggered . | . . . . Machines | -11 -10 -10 -9 ---------- Run | Yrd Mat Min Mat Machines Disabled 4 | . 4 . . Max in Single Turn 4 | . 4 . . Machines Repaired . | . . . . Machines Dismantled . | . . . . Machines Sabotaged . | . . . . Overloaded Fab Kills . | . . . . Hacking | -11 -10 -10 -9 --------- Run | Yrd Mat Min Mat Machines Accessed 2 | . 2 . . Terminals 2 | . 2 . . Fabricators . | . . . . Repair Stations . | . . . . Recycling Units . | . . . . Scanalyzers . | . . . . Garrison Access . | . . . . Total Hacks 6 | . 6 . . Successful 1 | . 1 . . Failed 5 | . 5 . . Catastrophic . | . . . . Database Lockouts . | . . . . Manual 8 | . 8 . . Terminals 6 | . 6 . . Fabricators . | . . . . Repair Stations . | . . . . Recycling Units . | . . . . Scanalyzers . | . . . . Garrison Access . | . . . . Terminal Hacks . | . . . . Fabricator Hacks . | . . . . Repair Station Hacks . | . . . . Recycling Unit Hacks . | . . . . Scanalyzer . | . . . . Garrison Access Hacks . | . . . . Unauthorized Hacks 1 | . 1 . . Terminals 1 | . 1 . . Track 1 | . 1 . . Fabricators . | . . . . Repair Stations . | . . . . Recycling Units . | . . . . Scanalyzers . | . . . . Garrison Access . | . . . . Data Cores Recovered . | . . . . Used . | . . . . Hacking Detections 2 | . 2 . . Full Trace Events 2 | . 2 . . Feedback Events . | . . . . Feedback Blocked . | . . . . Robot Schematics Acquired . | . . . . Robots Built . | . . . . Authchips . | . . . . Time . | . . . . Total Robot Build Rating . | . . . . Part Schematics Acquired . | . . . . Parts Built . | . . . . Authchips . | . . . . Time . | . . . . Total Part Build Rating . | . . . . Parts Repaired . | . . . . Time . | . . . . Parts Recycled . | . . . . Recycled Matter . | . . . . Retrieved Matter . | . . . . Retrieved Components . | . . . . Parts Scanalyzed . | . . . . Part Schematics Acquired . | . . . . Parts Damaged . | . . . . Bothacking | -11 -10 -10 -9 ------------ Run | Yrd Mat Min Mat Used RIF Installer . | . . . . Robots Hacked . | . . . . Non-combat . | . . . . Combat . | . . . . Robot Hacks Applied . | . . . . Relay Couplers Released . | . . . . Fabnet Peak Effective % . | . . . . Robots Rewired . | . . . . Allies Hacked . | . . . . Hacks Repelled . | . . . . Allies | -11 -10 -10 -9 -------- Run | Yrd Mat Min Mat Total Allies . | . . . . Largest Group . | . . . . Highest-Rated Group . | . . . . Highest-Rated Ally . | . . . . Total Orders . | . . . . Ally Attacks . | . . . . Total Damage . | . . . . Kills . | . . . . Allies Corrupted . | . . . . Allies Melted . | . . . . Intel | -11 -10 -10 -9 ------- Run | Yrd Mat Min Mat Robot Analysis Total . | . . . . Derelict Logs Recovered 1 | . . 1 . Drone Launches . | . . . . Drone Recoveries . | . . . . Exploration | -11 -10 -10 -9 ------------- Run | Yrd Mat Min Mat Turns Passed 1589 | 230 412 783 164 Spaces Moved 538 | 95 157 245 41 Core 17 | 15 . . 2 Treads . | . . . . Legs 521 | 80 157 245 39 Wheels . | . . . . Hover . | . . . . Flight . | . . . . Fastest Speed 50 | 50 120 260 190 Average Speed 228 | 116 223 265 281 Slowest Speed 700 | 150 260 400 700 Overloaded Moves . | . . . . Propulsion Burnouts . | . . . . Robots Hopped . | . . . . Cave-ins Triggered . | . . . . Exploration Rate (%) 23 | 5 38 44 7 Regions Visited 3 Branch Regions 1 Pre-discovered Areas 1 | . . 1 . Known Exits Taken . | . . . . Unknown Exits Taken 3 | 1 1 1 . Scrap Searched . | . . . . Spaces Dug . | . . . . Terrain Destroyed 34 | . 30 4 . Melee . | . . . . Projectile . | . . . . AOE 34 | . 30 4 . Terrain Rammed . | . . . . Walls Destroyed . | . . . . Machines Disabled . | . . . . Actions | -11 -10 -10 -9 --------- Run | Yrd Mat Min Mat Total 741 | 180 188 308 65 Wait 58 | 55 . 3 . Move 535 | 94 156 244 41 Hop . | . . . . Pick Up 18 | 7 7 4 . Fast Attach 17 | 7 1 6 3 Attach 3 | . . 1 2 Detach . | . . . . Swap 3 | . 1 2 . Drop 8 | . 4 4 . Fire 83 | 17 18 40 8 Melee . | . . . . Ram 2 | . . . 2 Kick 14 | . 1 4 9 Crush . | . . . . Escape Stasis . | . . . . Rewire . | . . . . Trap . | . . . . Miscellaneous . | . . . . Route ------- -11/Scrapyard -10/Materials -10/Mines -9/Materials History --------- Turn | Location | Event 14 | -11/Scrapyard | Discovered new exit (range 16) 231 | -11/Scrapyard | Entered Materials 306 | -10/Materials | Build established: Mutant 602 | -10/Materials | Discovered new exit (range 15) 643 | -10/Materials | Entered Mines 1067 | -10/Mines | Lost 3 parts (1p1n1w) 1166 | -10/Mines | Found a damaged Exp. Sensor Array with a note attached 1171 | -10/Mines | Found Prototype Device 1336 | -10/Mines | Discovered new exit (range 5) 1358 | -10/Mines | Core integrity fell below 50% 1407 | -10/Mines | Lost 4 parts (1p1u2w) 1426 | -10/Mines | Entered Materials 1426 | -9/Materials | Evolved 2 slots: Propulsion x2 1545 | -9/Materials | Core integrity fell below 50% 1579 | -9/Materials | Core integrity fell below 20% 1590 | -9/Materials | Destroyed by S-10 Pest with Light Assault Rifle Last Messages --------------- R-06 Scavenger collects Heat Sink. Kicked G-47 Trooper out of the way. K-01 Serf collects debris. Kicked G-47 Trooper out of the way. R-06 Scavenger collects Lgt. Ion Engine. K-01 Serf collects debris. Kicked G-47 Trooper out of the way. Aluminum Leg destroyed. Kicked G-47 Trooper. Kicked G-47 Trooper out of the way. Aluminum Leg destroyed. Kicked G-47 Trooper. G-47 Trooper destroyed. R-06 Scavenger collects Ion Engine. Aluminum Leg destroyed. Slammed into S-10 Pest. Destabilizing: Core damaged (-4). K-01 Serf collects debris. Slammed into S-10 Pest. K-01 Serf collects debris. Map ----- +----------------------------------------------------+ | ??????????????????##??#???????????????????? | | ???????????########??????#????????????????? | | ?#?????#???# #??#????????????????????? | | ???????????# """ #???????????????????????? | | ???????????# """ #?????????#?????????????? | | ???#???????# """ #??????#????????????????? | | ???????????# ##?????#????????????????? | | ??????????## #???????????????????????? | | ???????????####+######????????????????????? | | ?????#?????# #????#?????????????????? | | ???????????# #???#??????????????????? | | ??????#????# ####??#????????????????? | | ???????????##### !##??????????????????? | | ???????????????# !#??????????????????? | | ???#???????????# !#?#????????????????? | | ????##?????????# !#??????????????????? | | ???????????????# !#??????????????????? | | ????#######+#### !##??????#???????????? | | ????# ####?????????#?????????? | | ???????#?##a * ###############????????? | | ??????????# """%% # / ?????????? | | ??????????# """%% #% %% #??????????????? | | ??????????# """% %+% %= #??????????????? | | ??????????# %sk#########??????????????? | | ??????????# s #?#????????????????????? | | ??????????# """ @#????????#?????????????? | | ??????????# """ ""?????????????????????? | | ??????????# """ w ""#????????#???????????? | | ??????????# T"#?#?????#????????????? | | ??????????+ ""##???????????????????? | | ???????? # """ ""#??#?????????????????? | | ??????? ??# """ ###?????#??????????????? | | ??????????# """ #??????????????????????? | | ??????????# #?????????#????????????? | | ??????????#??? #??????????????????????? | | ??????????????"" #????????#?????????????? | | ??????????????"" +??????????????????????? | | ???????????????" #??????????????????????? | | ??????????????? ???????????????????????? | | ??????????????? ???????????????????????? | | ???????????????? ???????????????????????? | | ??????????????????????????????????????????? | | ??????????????????????????????????????????? | | ??????????????????????????????????????????? | | ??????????????????????????????????????????? | | ??????????????????????????????????????????? | | ??????????????????????????????????????????? | | ??????????????????????????????????????????? | | ??????????????????????????????????????????? | | ??????????????????????????????????????????? | +----------------------------------------------------+ Best States ------------- Heat Dissipation 28 Energy Generation 14 Energy Capacity 250 Matter Stores 300 Matter Capacity 300 Sight Range 16 Terrain Scan Range 16 Terrain Scan Density 10 Evasion (%) 55 Item Schematics ----------------- None Robot Schematics ------------------ None Fabricated ------------ Nothing Alien Tech Used ----------------- None Achievements -------------- True Hacker Challenges ------------ None Game ------ Seed CorruptionGrenadeFacilitator Manual? 0 Play Time 00:14:40 Cumulative 3.3 hours Start 2024.10.10 @ 21:58:36 End 2024.10.10 @ 22:12:35 Sessions 1 Manual Loads 0 Difficulty Rogue Special Mode None Game No. 7 Rogue 5 Adventurer 2 Explorer 0 Win Type - Total 0 Types 0/0/0/0/0/0/0/0/0 Lore% 3 Gallery% 8 Achievement% 8 Wizard Run 0 Options --------- Layout 1 ASCII 0 Keyboard 0 Movement Numpad Keybinds 1 Fullscreen 1 Font 32/Terminus Map View 50x35 Zoom Use 0% Tactical HUD 0 Map Filters NONE Filters NONE Steam 1 RUN: e893151b-ef09-47e9-b04f-24045c256b63